[Event "Titled Tuesday Blitz August 08 Early 2023"]
[White "Budrewicz, Krzysztof"]
[Black "Mikhaylova, Irina"]
[WhiteFideId "1127950"]
[BlackFideId "4109040"]
[WhiteElo "2587"]
[BlackElo "2257"]
[Result "1-0"]
[Round "1"]
[TimeControl "180+1"]
[Date "2023.08.08"]
[WhiteClock "0:00:12"]
[BlackClock "0:00:00"]
[Board "208"]

1. d4 {[%clk 0:02:52]}  Nf6 {[%clk 0:02:59]} 2. Bg5 {[%clk 0:02:50]}  Ne4 {[%clk 0:02:58]} 3. Bf4 {[%clk 0:02:50]}  c5 {[%clk 0:02:50]} 4. d5 {[%clk 0:02:49]}  d6 {[%clk 0:02:47]} 5. f3 {[%clk 0:02:45]}  Nf6 {[%clk 0:02:46]} 6. e4 {[%clk 0:02:46]}  g6 {[%clk 0:02:47]} 7. Nc3 {[%clk 0:02:45]}  Bg7 {[%clk 0:02:47]} 8. Bb5+ {[%clk 0:02:42]}  Nbd7 {[%clk 0:02:46]} 9. a4 {[%clk 0:02:42]}  O-O {[%clk 0:02:45]} 10. Nge2 {[%clk 0:02:41]}  Ne8 {[%clk 0:02:45]} 11. O-O {[%clk 0:02:39]}  Nc7 {[%clk 0:02:46]} 12. Bc4 {[%clk 0:02:37]}  Ne5 {[%clk 0:02:42]} 13. Ba2 {[%clk 0:02:31]}  e6 {[%clk 0:02:43]} 14. dxe6 {[%clk 0:02:28]}  Bxe6 {[%clk 0:02:43]} 15. Nd5 {[%clk 0:02:27]}  Nxd5 {[%clk 0:02:37]} 16. Bxd5 {[%clk 0:02:26]}  Bxd5 {[%clk 0:02:31]} 17. Qxd5 {[%clk 0:02:25]}  Qd7 {[%clk 0:02:30]} 18. Rfd1 {[%clk 0:02:23]}  Rfd8 {[%clk 0:02:26]} 19. c3 {[%clk 0:02:17]}  Qc6 {[%clk 0:02:26]} 20. Bg3 {[%clk 0:02:12]}  Rd7 {[%clk 0:02:04]} 21. Bf2 {[%clk 0:01:59]}  Rad8 {[%clk 0:01:44]} 22. Qxc6 {[%clk 0:01:54]}  Nxc6 {[%clk 0:01:36]} 23. Nf4 {[%clk 0:01:53]}  Ne7 {[%clk 0:01:33]} 24. Nd5 {[%clk 0:01:50]}  Nxd5 {[%clk 0:01:14]} 25. Rxd5 {[%clk 0:01:49]}  Kf8 {[%clk 0:01:11]} 26. Rad1 {[%clk 0:01:43]}  Ke7 {[%clk 0:01:10]} 27. Bh4+ {[%clk 0:01:40]}  Bf6 {[%clk 0:01:00]} 28. Bg3 {[%clk 0:01:40]}  Ke6 {[%clk 0:00:48]} 29. Kf2 {[%clk 0:01:36]}  Be5 {[%clk 0:00:45]} 30. f4 {[%clk 0:01:33]}  Bf6 {[%clk 0:00:41]} 31. f5+ {[%clk 0:01:33]}  Ke7 {[%clk 0:00:41]} 32. Bf4 {[%clk 0:01:32]}  g5 {[%clk 0:00:40]} 33. Bg3 {[%clk 0:01:27]}  h5 {[%clk 0:00:40]} 34. h3 {[%clk 0:01:28]}  b6 {[%clk 0:00:34]} 35. Kf3 {[%clk 0:01:25]}  a6 {[%clk 0:00:33]} 36. Bh2 {[%clk 0:01:20]}  Bg7 {[%clk 0:00:27]} 37. Bg1 {[%clk 0:01:14]}  Bf6 {[%clk 0:00:26]} 38. Be3 {[%clk 0:01:14]}  b5 {[%clk 0:00:21]} 39. axb5 {[%clk 0:01:06]}  axb5 {[%clk 0:00:22]} 40. Ra1 {[%clk 0:01:06]}  b4 {[%clk 0:00:21]} 41. Bd2 {[%clk 0:01:00]}  bxc3 {[%clk 0:00:21]} 42. bxc3 {[%clk 0:00:59]}  Rb7 {[%clk 0:00:16]} 43. Ra2 {[%clk 0:00:58]}  Rg8 {[%clk 0:00:14]} 44. Ra6 {[%clk 0:00:50]}  Be5 {[%clk 0:00:14]} 45. Ke2 {[%clk 0:00:42]}  f6 {[%clk 0:00:14]} 46. Be3 {[%clk 0:00:41]}  Rgb8 {[%clk 0:00:14]} 47. Kd3 {[%clk 0:00:40]}  Rc7 {[%clk 0:00:12]} 48. Bd2 {[%clk 0:00:40]}  Rcb7 {[%clk 0:00:13]} 49. Kc4 {[%clk 0:00:37]}  Rb6 {[%clk 0:00:12]} 50. Rxb6 {[%clk 0:00:28]}  Rxb6 {[%clk 0:00:12]} 51. Rd3 {[%clk 0:00:29]}  Rb2 {[%clk 0:00:12]} 52. Kd5 {[%clk 0:00:29]}  Rc2 {[%clk 0:00:10]} 53. g4 {[%clk 0:00:18]}  h4 {[%clk 0:00:09]} 54. Kc4 {[%clk 0:00:17]}  Kd7 {[%clk 0:00:08]} 55. Kb3 {[%clk 0:00:15]}  c4+ {[%clk 0:00:07]} 56. Kxc2 {[%clk 0:00:11]}  cxd3+ {[%clk 0:00:07]} 57. Kxd3 {[%clk 0:00:12]}  Kc6 {[%clk 0:00:08]} 58. Kc4 {[%clk 0:00:12]}  Bg3 {[%clk 0:00:06]} 59. Be3 {[%clk 0:00:12]}  Be5 {[%clk 0:00:06]} 60. Bd4 {[%clk 0:00:13]}  Kd7 {[%clk 0:00:02]} 61. Bxe5 {[%clk 0:00:11]}  dxe5 {[%clk 0:00:01]} 62. Kd5 {[%clk 0:00:12]}  Kc7 {[%clk 0:00:02]} 63. Ke6 {[%clk 0:00:12]}  Kc6 {[%clk 0:00:00]} 64. Kxf6 {[%clk 0:00:12]} 1-0


[Site "https://www.chess.com"]

[Event "Titled Tuesday Blitz August 08 Early 2023"]
[White "Schut, Han"]
[Black "Vaibhav Jayant Raut"]
[WhiteFideId "1005561"]
[BlackFideId "5089034"]
[WhiteElo "2254"]
[BlackElo "2586"]
[Result "0-1"]
[Round "1"]
[TimeControl "180+1"]
[Date "2023.08.08"]
[WhiteClock "0:00:01"]
[BlackClock "0:00:10"]
[Board "209"]

1. e4 {[%clk 0:02:59]}  e5 {[%clk 0:02:59]} 2. Nf3 {[%clk 0:02:59]}  Nc6 {[%clk 0:02:59]} 3. Bc4 {[%clk 0:02:59]}  Bc5 {[%clk 0:02:58]} 4. c3 {[%clk 0:02:56]}  Nf6 {[%clk 0:02:55]} 5. d4 {[%clk 0:02:56]}  exd4 {[%clk 0:02:54]} 6. b4 {[%clk 0:02:56]}  Bb6 {[%clk 0:02:44]} 7. e5 {[%clk 0:02:56]}  d5 {[%clk 0:02:36]} 8. exf6 {[%clk 0:02:57]}  dxc4 {[%clk 0:02:36]} 9. Qe2+ {[%clk 0:02:56]}  Be6 {[%clk 0:02:35]} 10. b5 {[%clk 0:02:56]}  d3 {[%clk 0:01:57]} 11. Qe4 {[%clk 0:02:55]}  O-O {[%clk 0:01:27]} 12. bxc6 {[%clk 0:02:45]}  Re8 {[%clk 0:01:20]} 13. O-O {[%clk 0:02:40]}  Bd5 {[%clk 0:01:06]} 14. Qg4 {[%clk 0:02:27]}  Qxf6 {[%clk 0:01:03]} 15. cxb7 {[%clk 0:02:18]}  Bxb7 {[%clk 0:01:01]} 16. Bg5 {[%clk 0:02:00]}  Qe6 {[%clk 0:00:55]} 17. Qxe6 {[%clk 0:01:53]}  Rxe6 {[%clk 0:00:56]} 18. Nbd2 {[%clk 0:01:53]}  Bd5 {[%clk 0:00:53]} 19. Rfe1 {[%clk 0:01:46]}  Rae8 {[%clk 0:00:38]} 20. Rxe6 {[%clk 0:01:45]}  Rxe6 {[%clk 0:00:39]} 21. Re1 {[%clk 0:01:44]}  Rxe1+ {[%clk 0:00:38]} 22. Nxe1 {[%clk 0:01:43]}  Ba5 {[%clk 0:00:37]} 23. Nef3 {[%clk 0:01:27]}  Bxc3 {[%clk 0:00:34]} 24. Be3 {[%clk 0:01:04]}  a5 {[%clk 0:00:33]} 25. Kf1 {[%clk 0:00:55]}  Bb4 {[%clk 0:00:31]} 26. Ne5 {[%clk 0:00:30]}  c3 {[%clk 0:00:25]} 27. Nxd3 {[%clk 0:00:28]}  cxd2 {[%clk 0:00:23]} 28. Ke2 {[%clk 0:00:27]}  Bxa2 {[%clk 0:00:14]} 29. Bxd2 {[%clk 0:00:24]}  Bc4 {[%clk 0:00:11]} 30. Bf4 {[%clk 0:00:20]}  c6 {[%clk 0:00:09]} 31. Ke3 {[%clk 0:00:19]}  Bxd3 {[%clk 0:00:09]} 32. Kxd3 {[%clk 0:00:20]}  Kf8 {[%clk 0:00:09]} 33. Kc4 {[%clk 0:00:19]}  Ke7 {[%clk 0:00:10]} 34. Be3 {[%clk 0:00:18]}  Ke6 {[%clk 0:00:10]} 35. f3 {[%clk 0:00:16]}  g6 {[%clk 0:00:10]} 36. g3 {[%clk 0:00:16]}  h5 {[%clk 0:00:10]} 37. h3 {[%clk 0:00:16]}  Bd6 {[%clk 0:00:09]} 38. g4 {[%clk 0:00:17]}  hxg4 {[%clk 0:00:09]} 39. hxg4 {[%clk 0:00:17]}  Bb4 {[%clk 0:00:09]} 40. Bd4 {[%clk 0:00:16]}  f5 {[%clk 0:00:10]} 41. Bb2 {[%clk 0:00:08]}  fxg4 {[%clk 0:00:09]} 42. fxg4 {[%clk 0:00:07]}  Bd6 {[%clk 0:00:09]} 43. Bc3 {[%clk 0:00:06]}  a4 {[%clk 0:00:10]} 44. Ba1 {[%clk 0:00:05]}  a3 {[%clk 0:00:10]} 45. Kb3 {[%clk 0:00:01]}  Kd5 {[%clk 0:00:10]} 0-1


[Site "https://www.chess.com"]

[Event "Titled Tuesday Blitz August 08 Early 2023"]
[White "Kula, Robert"]
[Black "Krutko, Anatoly"]
[WhiteFideId "1101218"]
[BlackFideId "4185862"]
[WhiteElo "2245"]
[BlackElo "2585"]
[Result "0-1"]
[Round "1"]
[TimeControl "180+1"]
[Date "2023.08.08"]
[WhiteClock "0:00:00"]
[BlackClock "0:00:32"]
[Board "211"]

1. e4 {[%clk 0:02:56]}  g6 {[%clk 0:02:49]} 2. d4 {[%clk 0:02:55]}  Bg7 {[%clk 0:02:49]} 3. c4 {[%clk 0:02:55]}  e6 {[%clk 0:02:49]} 4. Nc3 {[%clk 0:02:55]}  Ne7 {[%clk 0:02:47]} 5. Be2 {[%clk 0:02:48]}  d5 {[%clk 0:02:46]} 6. cxd5 {[%clk 0:02:46]}  exd5 {[%clk 0:02:44]} 7. e5 {[%clk 0:02:47]}  c5 {[%clk 0:02:44]} 8. dxc5 {[%clk 0:02:35]}  Nbc6 {[%clk 0:02:41]} 9. Nf3 {[%clk 0:02:33]}  O-O {[%clk 0:02:31]} 10. O-O {[%clk 0:02:32]}  Bg4 {[%clk 0:02:26]} 11. Bg5 {[%clk 0:02:30]}  Qd7 {[%clk 0:02:23]} 12. h3 {[%clk 0:02:13]}  Be6 {[%clk 0:02:19]} 13. Bb5 {[%clk 0:02:04]}  a6 {[%clk 0:02:17]} 14. Ba4 {[%clk 0:02:04]}  Qc7 {[%clk 0:02:06]} 15. Re1 {[%clk 0:02:00]}  Nf5 {[%clk 0:01:52]} 16. Nxd5 {[%clk 0:01:47]}  Bxd5 {[%clk 0:01:50]} 17. Qxd5 {[%clk 0:01:47]}  Nb4 {[%clk 0:01:48]} 18. Qe4 {[%clk 0:01:37]}  Qxc5 {[%clk 0:01:46]} 19. a3 {[%clk 0:01:23]}  Nc6 {[%clk 0:01:44]} 20. Rac1 {[%clk 0:01:19]}  Qb6 {[%clk 0:01:43]} 21. Bxc6 {[%clk 0:01:17]}  bxc6 {[%clk 0:01:42]} 22. b4 {[%clk 0:01:17]}  Rac8 {[%clk 0:01:39]} 23. Bf6 {[%clk 0:01:16]}  Rfe8 {[%clk 0:01:38]} 24. Bxg7 {[%clk 0:01:15]}  Nxg7 {[%clk 0:01:39]} 25. Nd4 {[%clk 0:01:09]}  c5 {[%clk 0:01:39]} 26. Nb3 {[%clk 0:00:42]}  cxb4 {[%clk 0:01:36]} 27. axb4 {[%clk 0:00:41]}  Rxc1 {[%clk 0:01:35]} 28. Rxc1 {[%clk 0:00:41]}  Qb8 {[%clk 0:01:28]} 29. f4 {[%clk 0:00:38]}  Nf5 {[%clk 0:01:27]} 30. Rc6 {[%clk 0:00:35]}  Qb5 {[%clk 0:01:24]} 31. Qc4 {[%clk 0:00:32]}  Qxc4 {[%clk 0:01:16]} 32. Rxc4 {[%clk 0:00:31]}  Rd8 {[%clk 0:01:17]} 33. Nc5 {[%clk 0:00:29]}  Rd1+ {[%clk 0:01:14]} 34. Kh2 {[%clk 0:00:28]}  h5 {[%clk 0:01:15]} 35. g4 {[%clk 0:00:26]}  hxg4 {[%clk 0:01:12]} 36. hxg4 {[%clk 0:00:26]}  Ne3 {[%clk 0:01:13]} 37. Rc3 {[%clk 0:00:23]}  Nxg4+ {[%clk 0:01:12]} 38. Kg3 {[%clk 0:00:23]}  Nh6 {[%clk 0:01:09]} 39. Ne4 {[%clk 0:00:23]}  Nf5+ {[%clk 0:01:09]} 40. Kf2 {[%clk 0:00:22]}  Rd4 {[%clk 0:01:08]} 41. Nf6+ {[%clk 0:00:22]}  Kg7 {[%clk 0:01:05]} 42. Rb3 {[%clk 0:00:22]}  Rxf4+ {[%clk 0:01:05]} 43. Ke2 {[%clk 0:00:19]}  Nd4+ {[%clk 0:01:00]} 44. Ke3 {[%clk 0:00:18]}  Ne6 {[%clk 0:00:53]} 45. Rb1 {[%clk 0:00:17]}  Rh4 {[%clk 0:00:52]} 46. b5 {[%clk 0:00:16]}  axb5 {[%clk 0:00:52]} 47. Rxb5 {[%clk 0:00:17]}  Ra4 {[%clk 0:00:46]} 48. Rb8 {[%clk 0:00:16]}  Kh6 {[%clk 0:00:45]} 49. Rb7 {[%clk 0:00:15]}  Ra3+ {[%clk 0:00:44]} 50. Ke2 {[%clk 0:00:13]}  Kg5 {[%clk 0:00:38]} 51. Rxf7 {[%clk 0:00:12]}  Kf5 {[%clk 0:00:39]} 52. Nd7+ {[%clk 0:00:10]}  Ke4 {[%clk 0:00:39]} 53. Rf6 {[%clk 0:00:10]}  Ra6 {[%clk 0:00:33]} 54. Nf8 {[%clk 0:00:05]}  Nf4+ {[%clk 0:00:31]} 55. Kf2 {[%clk 0:00:04]}  Ra2+ {[%clk 0:00:31]} 56. Kg3 {[%clk 0:00:00]}  g5 {[%clk 0:00:32]} 0-1


[Site "https://www.chess.com"]

[Event "Titled Tuesday Blitz August 08 Early 2023"]
[White "Zaichenko, Daria"]
[Black "banhgiahuy2606"]
[WhiteFideId "4197453"]
[WhiteElo "2234"]
[BlackElo "2584"]
[Result "0-1"]
[Round "1"]
[TimeControl "180+1"]
[Date "2023.08.08"]
[WhiteClock "0:00:17"]
[BlackClock "0:01:15"]
[Board "215"]

1. e4 {[%clk 0:02:57]}  e6 {[%clk 0:02:58]} 2. d4 {[%clk 0:02:56]}  d5 {[%clk 0:02:58]} 3. Bd3 {[%clk 0:02:56]}  dxe4 {[%clk 0:02:57]} 4. Bxe4 {[%clk 0:02:55]}  Nf6 {[%clk 0:02:58]} 5. Bf3 {[%clk 0:02:55]}  Nbd7 {[%clk 0:02:59]} 6. c3 {[%clk 0:02:48]}  Bd6 {[%clk 0:02:57]} 7. Ne2 {[%clk 0:02:47]}  O-O {[%clk 0:02:57]} 8. O-O {[%clk 0:02:45]}  e5 {[%clk 0:02:58]} 9. Ng3 {[%clk 0:02:43]}  exd4 {[%clk 0:02:52]} 10. Qxd4 {[%clk 0:02:41]}  Ne5 {[%clk 0:02:51]} 11. Be2 {[%clk 0:02:27]}  c5 {[%clk 0:02:36]} 12. Qa4 {[%clk 0:02:15]}  Bd7 {[%clk 0:02:35]} 13. Qc2 {[%clk 0:02:11]}  Qc7 {[%clk 0:02:35]} 14. Bg5 {[%clk 0:02:01]}  Neg4 {[%clk 0:02:17]} 15. h3 {[%clk 0:01:43]}  Nxf2 {[%clk 0:02:07]} 16. Rxf2 {[%clk 0:01:41]}  Bxg3 {[%clk 0:02:07]} 17. Rxf6 {[%clk 0:01:40]}  gxf6 {[%clk 0:02:06]} 18. Bxf6 {[%clk 0:01:40]}  Qf4 {[%clk 0:02:06]} 19. Qd3 {[%clk 0:01:20]}  Bf2+ {[%clk 0:01:54]} 20. Kh1 {[%clk 0:01:20]}  Qxf6 {[%clk 0:01:55]} 21. Qxd7 {[%clk 0:01:20]}  Rad8 {[%clk 0:01:49]} 22. Qg4+ {[%clk 0:01:19]}  Qg6 {[%clk 0:01:50]} 23. Na3 {[%clk 0:01:16]}  Qxg4 {[%clk 0:01:48]} 24. Bxg4 {[%clk 0:01:15]}  a6 {[%clk 0:01:47]} 25. Rf1 {[%clk 0:01:12]}  Bg3 {[%clk 0:01:46]} 26. Nc4 {[%clk 0:01:06]}  b5 {[%clk 0:01:46]} 27. Ne3 {[%clk 0:01:05]}  Rd2 {[%clk 0:01:45]} 28. Nf5 {[%clk 0:01:04]}  Be5 {[%clk 0:01:45]} 29. Ne7+ {[%clk 0:01:02]}  Kh8 {[%clk 0:01:44]} 30. Nc6 {[%clk 0:00:51]}  Bd6 {[%clk 0:01:40]} 31. Rf6 {[%clk 0:00:43]}  Kg7 {[%clk 0:01:32]} 32. Rf5 {[%clk 0:00:43]}  Rxb2 {[%clk 0:01:29]} 33. Kg1 {[%clk 0:00:38]}  Re8 {[%clk 0:01:24]} 34. Rf1 {[%clk 0:00:26]}  Bg3 {[%clk 0:01:15]} 35. Bh5 {[%clk 0:00:23]}  Re1 {[%clk 0:01:14]} 36. Rxe1 {[%clk 0:00:19]}  Bxe1 {[%clk 0:01:15]} 37. Ne5 {[%clk 0:00:19]}  Bxc3 {[%clk 0:01:15]} 38. Nxf7 {[%clk 0:00:17]}  Bd4+ {[%clk 0:01:15]} 0-1


[Site "https://www.chess.com"]

[Event "Titled Tuesday Blitz August 08 Early 2023"]
[White "Principe, Gerson"]
[Black "Fernandez Hernandez, Gerardo"]
[WhiteFideId "3804550"]
[BlackFideId "2207400"]
[WhiteElo "2583"]
[BlackElo "2228"]
[Result "1/2-1/2"]
[Round "1"]
[TimeControl "180+1"]
[Date "2023.08.08"]
[WhiteClock "0:00:12"]
[BlackClock "0:00:36"]
[Board "216"]

1. Nf3 {[%clk 0:03:00]}  Nf6 {[%clk 0:02:59]} 2. d4 {[%clk 0:03:00]}  g6 {[%clk 0:02:59]} 3. b3 {[%clk 0:03:00]}  Bg7 {[%clk 0:02:59]} 4. Bb2 {[%clk 0:03:01]}  O-O {[%clk 0:03:00]} 5. e3 {[%clk 0:03:02]}  Ne4 {[%clk 0:02:56]} 6. Be2 {[%clk 0:03:03]}  c5 {[%clk 0:02:56]} 7. O-O {[%clk 0:03:03]}  Nc6 {[%clk 0:02:55]} 8. Nbd2 {[%clk 0:03:01]}  Nxd2 {[%clk 0:02:52]} 9. Qxd2 {[%clk 0:03:01]}  d5 {[%clk 0:02:52]} 10. Rfd1 {[%clk 0:02:58]}  Bg4 {[%clk 0:02:50]} 11. h3 {[%clk 0:02:58]}  Bxf3 {[%clk 0:02:49]} 12. Bxf3 {[%clk 0:02:59]}  e6 {[%clk 0:02:48]} 13. c4 {[%clk 0:02:57]}  cxd4 {[%clk 0:02:43]} 14. exd4 {[%clk 0:02:43]}  Qd7 {[%clk 0:02:42]} 15. cxd5 {[%clk 0:02:39]}  exd5 {[%clk 0:02:38]} 16. Rac1 {[%clk 0:02:39]}  Rfe8 {[%clk 0:02:33]} 17. Rc5 {[%clk 0:02:38]}  Ne7 {[%clk 0:02:17]} 18. Rdc1 {[%clk 0:02:25]}  Rac8 {[%clk 0:02:13]} 19. b4 {[%clk 0:02:26]}  b6 {[%clk 0:02:11]} 20. Rxc8 {[%clk 0:02:15]}  Rxc8 {[%clk 0:02:12]} 21. Bg4 {[%clk 0:02:03]}  Rxc1+ {[%clk 0:02:04]} 22. Qxc1 {[%clk 0:02:00]}  Qc6 {[%clk 0:02:01]} 23. Qd2 {[%clk 0:01:56]}  h5 {[%clk 0:01:57]} 24. Be2 {[%clk 0:01:55]}  Nf5 {[%clk 0:01:42]} 25. g4 {[%clk 0:01:49]}  hxg4 {[%clk 0:01:42]} 26. hxg4 {[%clk 0:01:50]}  Nd6 {[%clk 0:01:41]} 27. Bd3 {[%clk 0:01:39]}  Nc4 {[%clk 0:01:35]} 28. Qc2 {[%clk 0:01:38]}  b5 {[%clk 0:01:35]} 29. Qe2 {[%clk 0:01:22]}  Qe6 {[%clk 0:01:22]} 30. Bc3 {[%clk 0:01:08]}  Qxe2 {[%clk 0:01:18]} 31. Bxe2 {[%clk 0:01:09]}  Kf8 {[%clk 0:01:08]} 32. Bf3 {[%clk 0:01:06]}  Nb6 {[%clk 0:01:04]} 33. Be2 {[%clk 0:01:02]}  Nc4 {[%clk 0:01:02]} 34. f4 {[%clk 0:01:00]}  Ke7 {[%clk 0:00:59]} 35. Kf2 {[%clk 0:01:00]}  Nd6 {[%clk 0:00:53]} 36. Ke3 {[%clk 0:00:40]}  Nc4+ {[%clk 0:00:51]} 37. Kd3 {[%clk 0:00:36]}  Kd6 {[%clk 0:00:47]} 38. Bf3 {[%clk 0:00:34]}  f5 {[%clk 0:00:43]} 39. gxf5 {[%clk 0:00:33]}  gxf5 {[%clk 0:00:43]} 40. Bd1 {[%clk 0:00:32]}  Bh6 {[%clk 0:00:43]} 41. a4 {[%clk 0:00:12]}  a6 {[%clk 0:00:40]} 42. axb5 {[%clk 0:00:12]}  axb5 {[%clk 0:00:41]} 43. Bd2 {[%clk 0:00:12]}  Nxd2 {[%clk 0:00:39]} 44. Kxd2 {[%clk 0:00:13]}  Bxf4+ {[%clk 0:00:39]} 45. Kc3 {[%clk 0:00:13]}  Bg3 {[%clk 0:00:39]} 46. Be2 {[%clk 0:00:13]}  Kc6 {[%clk 0:00:38]} 47. Bf3 {[%clk 0:00:12]}  f4 {[%clk 0:00:37]} 48. Be2 {[%clk 0:00:12]}  Be1+ {[%clk 0:00:37]} 49. Kb3 {[%clk 0:00:12]}  Bd2 {[%clk 0:00:37]} 50. Bf3 {[%clk 0:00:11]}  Be3 {[%clk 0:00:36]} 51. Kc3 {[%clk 0:00:11]}  Bc1 {[%clk 0:00:36]} 52. Be2 {[%clk 0:00:11]}  Be3 {[%clk 0:00:36]} 53. Bf3 {[%clk 0:00:11]}  Bc1 {[%clk 0:00:36]} 54. Be2 {[%clk 0:00:11]}  Be3 {[%clk 0:00:36]} 55. Bf3 {[%clk 0:00:12]} 1/2-1/2


[Site "https://www.chess.com"]

[Event "Titled Tuesday Blitz August 08 Early 2023"]
[White "Samaganova, Aleksandra"]
[Black "Tatarinov, Dmitry"]
[WhiteFideId "13800221"]
[BlackFideId "24160067"]
[WhiteElo "2227"]
[BlackElo "2582"]
[Result "0-1"]
[Round "1"]
[TimeControl "180+1"]
[Date "2023.08.08"]
[WhiteClock "0:00:01"]
[BlackClock "0:01:06"]
[Board "217"]

1. c4 {[%clk 0:02:59]}  Nf6 {[%clk 0:02:59]} 2. Nc3 {[%clk 0:02:56]}  c5 {[%clk 0:03:00]} 3. Nf3 {[%clk 0:02:55]}  d5 {[%clk 0:03:00]} 4. cxd5 {[%clk 0:02:54]}  Nxd5 {[%clk 0:03:00]} 5. e3 {[%clk 0:02:49]}  Nc6 {[%clk 0:02:55]} 6. d4 {[%clk 0:02:48]}  cxd4 {[%clk 0:02:48]} 7. exd4 {[%clk 0:02:47]}  e6 {[%clk 0:02:46]} 8. Bd3 {[%clk 0:02:43]}  Bb4 {[%clk 0:02:45]} 9. Bd2 {[%clk 0:02:42]}  Nce7 {[%clk 0:02:45]} 10. O-O {[%clk 0:02:37]}  h6 {[%clk 0:02:40]} 11. Rc1 {[%clk 0:02:36]}  O-O {[%clk 0:02:31]} 12. Bb1 {[%clk 0:02:35]}  Bd6 {[%clk 0:02:26]} 13. Re1 {[%clk 0:02:24]}  Bd7 {[%clk 0:02:25]} 14. Ne5 {[%clk 0:02:06]}  Bxe5 {[%clk 0:02:24]} 15. dxe5 {[%clk 0:02:04]}  Nxc3 {[%clk 0:02:23]} 16. Bxc3 {[%clk 0:02:02]}  Bc6 {[%clk 0:02:24]} 17. Qg4 {[%clk 0:01:58]}  Nd5 {[%clk 0:02:11]} 18. Bd2 {[%clk 0:01:47]}  Kh8 {[%clk 0:02:04]} 19. Rcd1 {[%clk 0:01:24]}  f5 {[%clk 0:01:48]} 20. exf6 {[%clk 0:01:18]}  Qxf6 {[%clk 0:01:47]} 21. Qg3 {[%clk 0:01:06]}  Rad8 {[%clk 0:01:43]} 22. Bc1 {[%clk 0:00:45]}  e5 {[%clk 0:01:05]} 23. Rxe5 {[%clk 0:00:28]}  Nf4 {[%clk 0:01:05]} 24. Rxd8 {[%clk 0:00:05]}  Rxd8 {[%clk 0:01:06]} 25. Re1 {[%clk 0:00:01]}  Ne2+ {[%clk 0:01:06]} 26. Kh1 {[%clk 0:00:01]}  Nxg3+ {[%clk 0:01:06]} 27. hxg3 {[%clk 0:00:01]}  Qxf2 {[%clk 0:01:06]} 0-1


[Site "https://www.chess.com"]

[Event "Titled Tuesday Blitz August 08 Early 2023"]
[White "Prokofiev, Valentyn"]
[Black "Vaglio Munoz, Jaime"]
[WhiteFideId "14160161"]
[BlackFideId "6500145"]
[WhiteElo "2581"]
[BlackElo "2227"]
[Result "1-0"]
[Round "1"]
[TimeControl "180+1"]
[Date "2023.08.08"]
[WhiteClock "0:02:30"]
[BlackClock "0:02:01"]
[Board "218"]

1. Nf3 {[%clk 0:03:00]}  c5 {[%clk 0:02:57]} 2. c4 {[%clk 0:02:59]}  a6 {[%clk 0:02:55]} 3. Nc3 {[%clk 0:02:59]}  Nc6 {[%clk 0:02:55]} 4. g3 {[%clk 0:02:58]}  Rb8 {[%clk 0:02:55]} 5. a4 {[%clk 0:02:58]}  g6 {[%clk 0:02:54]} 6. Bg2 {[%clk 0:02:59]}  Bg7 {[%clk 0:02:54]} 7. O-O {[%clk 0:02:59]}  e6 {[%clk 0:02:53]} 8. e3 {[%clk 0:02:57]}  Nge7 {[%clk 0:02:52]} 9. d4 {[%clk 0:02:51]}  cxd4 {[%clk 0:02:50]} 10. exd4 {[%clk 0:02:52]}  d5 {[%clk 0:02:49]} 11. cxd5 {[%clk 0:02:44]}  Nxd5 {[%clk 0:02:48]} 12. Nxd5 {[%clk 0:02:45]}  exd5 {[%clk 0:02:46]} 13. Bf4 {[%clk 0:02:43]}  Ra8 {[%clk 0:02:44]} 14. Re1+ {[%clk 0:02:43]}  Kf8 {[%clk 0:02:38]} 15. Ne5 {[%clk 0:02:39]}  f6 {[%clk 0:02:35]} 16. Nxc6 {[%clk 0:02:35]}  bxc6 {[%clk 0:02:35]} 17. Rc1 {[%clk 0:02:35]}  Bd7 {[%clk 0:02:35]} 18. Qb3 {[%clk 0:02:32]}  g5 {[%clk 0:02:21]} 19. Bd6+ {[%clk 0:02:30]}  Kg8 {[%clk 0:02:01]} 20. Bxd5+ {[%clk 0:02:30]} 1-0


[Site "https://www.chess.com"]

[Event "Titled Tuesday Blitz August 08 Early 2023"]
[White "Thiel, Thomas"]
[Black "Eynullayev, Altay"]
[WhiteFideId "4615964"]
[BlackFideId "13413562"]
[WhiteElo "2218"]
[BlackElo "2576"]
[Result "0-1"]
[Round "1"]
[TimeControl "180+1"]
[Date "2023.08.08"]
[WhiteClock "0:01:09"]
[BlackClock "0:02:07"]
[Board "221"]

1. e4 {[%clk 0:03:00]}  e5 {[%clk 0:02:58]} 2. Nf3 {[%clk 0:02:57]}  Nc6 {[%clk 0:02:58]} 3. d4 {[%clk 0:02:56]}  exd4 {[%clk 0:02:58]} 4. Nxd4 {[%clk 0:02:56]}  Bb4+ {[%clk 0:02:54]} 5. c3 {[%clk 0:02:54]}  Bc5 {[%clk 0:02:55]} 6. Be3 {[%clk 0:02:54]}  Bb6 {[%clk 0:02:56]} 7. Nf5 {[%clk 0:02:54]}  Bxe3 {[%clk 0:02:52]} 8. Nxe3 {[%clk 0:02:55]}  Nge7 {[%clk 0:02:52]} 9. f3 {[%clk 0:02:51]}  d6 {[%clk 0:02:52]} 10. c4 {[%clk 0:02:50]}  Ng6 {[%clk 0:02:51]} 11. Nc3 {[%clk 0:02:49]}  O-O {[%clk 0:02:52]} 12. Qd2 {[%clk 0:02:49]}  Qh4+ {[%clk 0:02:44]} 13. g3 {[%clk 0:02:41]}  Qd8 {[%clk 0:02:42]} 14. Be2 {[%clk 0:02:41]}  Bd7 {[%clk 0:02:35]} 15. O-O {[%clk 0:02:39]}  Nce7 {[%clk 0:02:27]} 16. f4 {[%clk 0:02:38]}  f5 {[%clk 0:02:27]} 17. Bf3 {[%clk 0:02:32]}  Bc6 {[%clk 0:02:24]} 18. exf5 {[%clk 0:02:26]}  Nxf5 {[%clk 0:02:23]} 19. Bd5+ {[%clk 0:02:14]}  Kh8 {[%clk 0:02:22]} 20. Rae1 {[%clk 0:02:06]}  Qf6 {[%clk 0:02:17]} 21. Ng4 {[%clk 0:01:51]}  Qd4+ {[%clk 0:02:14]} 22. Qxd4 {[%clk 0:01:49]}  Nxd4 {[%clk 0:02:15]} 23. Ne3 {[%clk 0:01:42]}  Rae8 {[%clk 0:02:13]} 24. Ne4 {[%clk 0:01:25]}  Rxe4 {[%clk 0:02:09]} 25. Bxe4 {[%clk 0:01:22]}  Bxe4 {[%clk 0:02:10]} 26. f5 {[%clk 0:01:09]}  Ne5 {[%clk 0:02:07]} 0-1


[Site "https://www.chess.com"]